fUSD/lending_fUSD_20250222
["ID","MTS","AMOUNT","RATE_DAILY","PERIOD"]
[354078787,1740225055331,-343.50794213,0.00012849,2]
[354078788,1740225055343,-106.38205787,0.00012849,2]
[354078789,1740225055352,-381.61044713,0.00012876,2]
[354078790,1740225055365,-289.15000193,0.00012876,2]
[354078791,1740225055376,-329.23955094,0.00012876,2]
[354078792,1740225055386,-167.7935449,0.0001288,2]
[354078793,1740225055395,-162.117335,0.00012881,2]
[354078794,1740225055404,-21768.56,0.00012881,2]
[354078795,1740225055414,-523.9167002,0.00012889,2]
[354078796,1740225055424,-3178.5679905,0.00012889,2]
[354078797,1740225055433,-500.0,0.00012897,2]
[354078798,1740225055443,-500.0,0.00012897,2]
[354078799,1740225055452,-501.90253269,0.00012898,2]
[354078800,1740225055462,-501.28732699,0.00012898,2]
[354078801,1740225055471,-501.18897814,0.00012898,2]
[354078802,1740225055481,-500.99933226,0.00012898,2]
[354078803,1740225055490,-509.12607805,0.00012898,2]
[354078804,1740225055501,-304.29727347,0.00012898,2]
[354078805,1740225055510,-503.26488378,0.00012898,2]
[354078806,1740225055519,-500.0,0.00012898,2]
[354078807,1740225055529,-500.66271865,0.00012898,2]
[354078808,1740225055538,-501.39088778,0.00012898,2]
[354078809,1740225055547,-500.0,0.00012898,2]
[354078810,1740225055557,-501.05397861,0.00012898,2]
[354078811,1740225055566,-501.40810871,0.00012898,2]
[354078812,1740225055576,-501.37249419,0.00012898,2]
[354078813,1740225055585,-500.0,0.00012898,2]
[354078814,1740225055595,-500.0,0.00012898,2]
[354078815,1740225055604,-500.29094757,0.00012898,2]
[354078816,1740225055614,-502.45444396,0.00012898,2]
[354078817,1740225055624,-505.23469389,0.00012898,2]
[354078818,1740225055633,-617.56015701,0.00012898,2]
[354078819,1740225055642,-596.11536594,0.00012898,2]
[354078820,1740225055651,-500.91225496,0.00012898,2]
[354078821,1740225055661,-502.21924807,0.00012898,2]
[354078822,1740225055670,-500.38508115,0.00012898,2]
[354078823,1740225055680,-322.17704466,0.00012898,2]
[354078824,1740225055690,-500.0,0.00012898,2]
[354078825,1740225055699,-506.20412259,0.00012898,2]
[354078826,1740225055711,-500.0,0.00012898,2]
[354078827,1740225055720,-500.0,0.00012898,2]
[354078828,1740225055730,-541.97,0.00012898,2]
[354078829,1740225055739,-618.67949776,0.00012899,2]
[354078830,1740225055749,-500.0,0.00012899,2]
[354078831,1740225055758,-135131.63510685,0.000129,2]
[354078832,1740225055770,-493.44549997,0.000129,2]
[354078833,1740225055781,-1049.41419005,0.000129,2]
[354078834,1740225055792,-1685.77121904,0.000129,2]
[354078835,1740225055804,-1007.52312096,0.000129,2]
[354078836,1740225055815,-578.6613056,0.000129,2]
[354078837,1740225055826,-1705.5582732,0.000129,2]
[354078838,1740225055837,-35156.06070974,0.000129,2]
[354078839,1740225055847,-204.0,0.000129,2]
[354078840,1740225055857,-3286.22901551,0.000129,2]
[354078841,1740225055866,-185.29302022,0.000129,2]
[354078842,1740225055875,-200.0,0.000129,2]
[354078843,1740225055884,-500.0,0.000129,2]
[354078844,1740225055893,-500.0,0.000129,2]
[354078845,1740225055906,-500.0,0.000129,2]
[354078846,1740225055915,-500.0,0.000129,2]
[354078847,1740225055924,-500.0,0.000129,2]
[354078848,1740225055934,-500.0,0.000129,2]
[354078849,1740225055943,-500.0,0.000129,2]
[354078850,1740225055953,-809.0,0.000129,2]
[354078851,1740225055962,-151.0,0.000129,2]
[354078852,1740225055972,-151.0,0.000129,2]
[354078853,1740225055982,-151.0,0.000129,2]
[354078854,1740225055992,-1517.50549,0.000129,2]
[354078855,1740225056003,-736.0,0.000129,2]
[354078856,1740225056012,-1300.0,0.000129,4]
[354078857,1740225056022,-151.0,0.000129,2]
[354078858,1740225056031,-151.0,0.000129,2]
[354078859,1740225056040,-151.0,0.000129,2]
[354078860,1740225056049,-749.0,0.000129,2]
[354078861,1740225056058,-1000.0,0.000129,2]
[354078862,1740225056067,-1000.0,0.000129,2]
[354078863,1740225056076,-1000.0,0.000129,2]
[354078864,1740225056086,-1000.0,0.000129,2]
[354078865,1740225056095,-1000.0,0.000129,2]
[354078866,1740225056104,-1000.0,0.000129,2]
[354078867,1740225056114,-1000.0,0.000129,2]
[354078868,1740225056124,-1000.0,0.000129,2]
[354078869,1740225056133,-1000.0,0.000129,2]
[354078870,1740225056143,-1000.0,0.000129,2]
[354078871,1740225056152,-486.34350969,0.00012903,2]
[354078872,1740225056161,-486.34350969,0.00012909,2]
[354078873,1740225056171,-496.30378026,0.00012909,2]
[354078874,1740225056180,-496.30378026,0.00012918,2]
[354078875,1740225056190,-150.0,0.00012918,2]
[354078876,1740225056200,-28274.11353126,0.00012919,2]
[354078877,1740225056210,-486.34350969,0.00012921,2]
[354078878,1740225056219,-28274.11353126,0.00012922,2]
[354078879,1740225056228,-1663.25445335,0.0001293,2]
[354078880,1740225056237,-496.30378026,0.00012931,2]
[354078881,1740225056247,-340.80536803,0.00012932,2]
[354078882,1740225056257,-486.34350969,0.00012932,2]
[354078883,1740225056266,-340.80536803,0.00012948,2]
[354078884,1740225056275,-28274.11353126,0.0001296,2]
[354078885,1740225056284,-496.30378026,0.00012963,2]
[354078886,1740225056293,-28274.11353126,0.00012972,2]
[354078887,1740225056303,-340.80536803,0.00012976,2]
[354078888,1740225056314,-500.0,0.00012979,2]
[354078889,1740225056323,-1313.52087338,0.0001298,3]
[354078890,1740225056332,-541.97,0.0001298,2]
[354078891,1740225056342,-200.0,0.00012984,2]
[354078892,1740225056352,-150.0,0.00012991,2]
[354078893,1740225056361,-151.0,0.00012991,2]
[354078894,1740225056372,-162.07388,0.00012991,2]
[354078895,1740225056382,-151.0,0.00012991,2]
[354078896,1740225056392,-500.0,0.00012991,2]
[354078897,1740225056402,-523.9167002,0.00012991,2]
[354078898,1740225056411,-523.9167002,0.00012991,2]
[354078899,1740225056421,-150.0,0.00012991,2]
[354078900,1740225056432,-500.0,0.00012991,2]
[354078901,1740225056441,-150.0,0.00012991,2]
[354078902,1740225056450,-500.0,0.00012991,2]
[354078903,1740225056460,-150.0,0.00012991,2]
[354078904,1740225056469,-500.0,0.00012991,2]
[354078905,1740225056479,-2587.8492192,0.00012991,2]
[354078906,1740225056489,-150.0,0.00012991,2]
[354078907,1740225056498,-200.0,0.00012993,2]
[354078908,1740225056508,-150.0,0.00012997,2]
[354078909,1740225056517,-340.80536803,0.00012998,2]
[354078910,1740225056527,-300.0,0.00012999,2]
[354078911,1740225056537,-500.0,0.00012999,2]
[354078912,1740225056546,-500.0,0.00012999,2]
[354078913,1740225056556,-500.0,0.00012999,2]
[354078914,1740225056566,-541.97,0.00012999,2]
[354078915,1740225056575,-541.97,0.00012999,2]
[354078916,1740225056585,-1712.0,0.00013,2]
[354078917,1740225056594,-36246.55760149,0.00013,2]
[354078918,1740225056754,-482.75913743,0.00010958,2]
[354078919,1740225056766,-17.24086257,0.00010958,2]
[354078920,1740225056776,-503.8439656,0.00010958,2]
[354078921,1740225056785,-226.19505062,0.00011039,2]
[354078922,1740225056796,-273.80494938,0.00011039,2]
[354078923,1740225056806,-99.0733134,0.0001104,2]
[354078924,1740225056820,-400.9266866,0.0001104,2]
[354078925,1740225056830,-1730.85515126,0.00013,2]
[354078926,1740225056843,-317.92,0.00013,2]
[354078927,1740225056855,-500.0,0.00013,2]
[354078928,1740225056866,-447.89013465,0.00013,2]
[354078929,1740225056877,-3226.16355722,0.00013,2]
[354078930,1740225056888,-7563.91424845,0.00013,2]
[354078931,1740225056900,-9000.0,0.00013,2]
[354078932,1740225056914,-1215.59450156,0.00013,2]
[354078933,1740225056930,-501.05350463,0.00013,2]
[354078934,1740225056941,-1372.9969722,0.00013,2]
[354078935,1740225056964,-500.0,0.00011039,2]
[354078936,1740225056973,-2221.4802,0.00013,2]
[354078937,1740225056987,-14208.67603151,0.00013,2]
[354078938,1740225057026,-1301.3675696,0.00013,2]
[354078939,1740225057038,-1302.1840501,0.00013,2]
[354078940,1740225057049,-1402.49998,0.00013,2]
[354078941,1740225057060,-1325.1,0.00013,2]
[354078942,1740225057072,-4736.43772707,0.00013,2]
[354078943,1740225057170,-500.0,0.00010958,2]
[354078944,1740225057179,-500.0,0.00010958,2]
[354078945,1740225057189,-500.0,0.00010958,2]
[354078946,1740225057199,-58.30887,0.0001104,2]
[354078947,1740225057229,-434.760005,0.00010958,2]
[354078948,1740225057240,-83.29759718,0.00010958,2]
[354078949,1740225057249,-441.69113,0.0001104,2]
[354078950,1740225057258,-33.86254337,0.0001104,2]
[354078951,1740225057270,-466.13745663,0.0001104,2]
[354078952,1740225057280,-505.27982191,0.00011041,2]
[354078953,1740225057290,-503.78645315,0.00011041,2]
[354078954,1740225057423,-9585.90001929,0.00013,2]
[354078955,1740225057435,-500.0,0.00013,2]
[354078956,1740225057446,-5004.8703576,0.00013,2]
[354078957,1740225057458,-128907.53839337,0.00013,2]
[354078958,1740225057467,-61161.2682631,0.00013,5]
[354078959,1740225057478,-2866.43,0.00013,5]
[354078960,1740225057490,-14044.19605598,0.00013,5]
[354078962,1740225911132,426.54,8.767e-05,2]
[354078964,1740226232254,-841.57,9.539e-05,2]
[354078965,1740226232264,-550.0,0.0001,2]
[354078966,1740226232273,-587.39028892,0.00010245,2]
[354078967,1740226232283,-300.0,0.00010344,2]
[354078968,1740226232292,-49540.15214637,0.00010345,2]
[354078969,1740226232515,-19072.91158318,0.00010345,2]
[354078970,1740226232525,-168.30292768,0.00010345,2]
[354078971,1740226232535,-19206.1716764,0.00010345,2]
[354078972,1740226232544,-1719.68897124,0.00010345,2]
[354078973,1740226232567,-12966.0,0.00010345,2]
[354078978,1740226240384,-466.867531,0.00010345,2]
[354078979,1740226240490,-1922.42255462,0.00010345,2]
[354078980,1740226240501,-51885.04594372,0.00010345,2]
[354078981,1740226240514,-7675.36210208,0.00010345,2]
[354078982,1740226240526,-25554.65731346,0.00010345,2]
[354078983,1740226240595,-60889.34384687,0.00010345,2]
[354078984,1740226240605,-250.0,0.00010391,2]
[354078985,1740226240614,-2000.0,0.00010417,2]
[354078986,1740226240623,-23900.0,0.00010546,2]
[354078987,1740226240632,-865.65328513,0.00010724,2]
[354078988,1740226240642,-865.65328512,0.00010724,2]
[354078989,1740226240651,-150.0,0.00010889,2]
[354078990,1740226240660,-500.0,0.00010954,2]
[354078991,1740226240669,-600.0,0.00010954,2]
[354078992,1740226240678,-1500.0,0.00010956,2]
[354078993,1740226240687,-245.08614,0.00010958,2]
[354078994,1740226240696,-187.985844,0.00010958,2]
[354078995,1740226240705,-509.68879069,0.00010958,2]
[354078996,1740226240715,-500.0,0.00010958,2]
[354078997,1740226240724,-500.0,0.00010958,2]
[354078998,1740226240733,-500.0,0.00010958,2]
[354078999,1740226240742,-535.54566244,0.00010958,2]
[354079000,1740226240752,-500.0,0.00010958,2]
[354079002,1740226240761,-500.0,0.00010958,2]
[354079004,1740226240770,-500.0,0.00010958,2]
[354079006,1740226240779,-500.0,0.00010958,2]
[354079008,1740226240788,-500.0,0.00010958,2]
[354079010,1740226240797,-500.0,0.00010958,2]
[354079012,1740226240806,-500.0,0.00010958,2]
[354079014,1740226240815,-501.52302718,0.00010958,2]
[354079016,1740226240824,-500.0,0.00010958,2]
[354079018,1740226240833,-515.82597389,0.00010958,2]
[354079020,1740226240843,-500.0,0.00010958,2]
[354079021,1740226240852,-506.92960055,0.00010958,2]
[354079023,1740226240861,-500.0,0.00010958,2]
[354079025,1740226240870,-500.0,0.00010958,2]
[354079027,1740226240879,-500.0,0.00010958,2]
[354079029,1740226240887,-500.0,0.00010958,2]
[354079031,1740226240896,-507.02484888,0.00010958,2]
[354079033,1740226240906,-504.06531003,0.00010958,2]
[354079035,1740226240915,-500.0,0.00010958,2]
[354079037,1740226240923,-500.0,0.00010958,2]
[354079040,1740226240933,-505.16389736,0.00010958,2]
[354079041,1740226240942,-502.66383571,0.00010958,2]
[354079043,1740226240951,-500.0,0.00010958,2]
[354079045,1740226240960,-505.26292722,0.00010958,2]
[354079047,1740226240969,-500.0,0.00010958,2]
[354079049,1740226240978,-500.0,0.00010958,2]
[354079051,1740226240987,-500.0,0.00010958,2]
[354079053,1740226240996,-500.0,0.00010958,2]
[354079055,1740226241005,-500.0,0.00010958,2]
[354079057,1740226241014,-500.0,0.00010958,2]
[354079059,1740226241023,-501.23265721,0.00010958,2]
[354079061,1740226241032,-500.0,0.00010958,2]
[354079063,1740226241041,-500.0,0.00010958,2]
[354079066,1740226241052,-503.32412096,0.00010958,2]
[354079068,1740226241062,-500.0,0.00010958,2]
[354079069,1740226241071,-500.0,0.00010958,2]
[354079071,1740226241080,-500.0,0.00010958,2]
[354079073,1740226241089,-500.0,0.00010958,2]
[354079075,1740226241098,-500.0,0.00010958,2]
[354079077,1740226241107,-500.0,0.00010958,2]
[354079079,1740226241116,-500.0,0.00010958,2]
[354079081,1740226241125,-500.0,0.00010958,2]
[354079083,1740226241134,-618.37690131,0.00010958,2]
[354079085,1740226241143,-500.0,0.00010958,2]
[354079087,1740226241152,-527.15876534,0.00010958,2]
[354079089,1740226241161,-500.0,0.00010958,2]
[354079091,1740226241170,-500.0,0.00010958,2]
[354079093,1740226241179,-489.4912367,0.00010958,2]
[354079095,1740226241189,-500.0,0.00010958,2]
[354079097,1740226241198,-500.0,0.00010958,2]
[354079099,1740226241207,-500.0,0.00010958,2]
[354079101,1740226241216,-502.84241338,0.00010958,2]
[354079103,1740226241225,-500.0,0.00010958,2]
[354079105,1740226241233,-500.0,0.00010958,2]
[354079107,1740226241242,-500.0,0.00010958,2]
[354079109,1740226241251,-510.43120431,0.00010958,2]
[354079111,1740226241260,-500.0,0.00010958,2]
[354079113,1740226241269,-500.0,0.00010958,2]
[354079115,1740226241278,-500.0,0.00010958,2]
[354079117,1740226241287,-500.0,0.00010958,2]
[354079119,1740226241295,-500.0,0.00010958,2]
[354079121,1740226241304,-500.0,0.00010958,2]
[354079123,1740226241314,-500.0,0.00010958,2]
[354079125,1740226241323,-500.0,0.00010958,2]
[354079127,1740226241332,-500.74425159,0.00010958,2]
[354079129,1740226241343,-500.0,0.00010958,2]
[354079131,1740226241353,-500.0,0.00010958,2]
[354079133,1740226241362,-500.0,0.00010958,2]
[354079135,1740226241371,-500.0,0.00010958,2]
[354079137,1740226241381,-263.38,0.00010958,2]
[354079139,1740226241390,-500.0,0.00010958,2]
[354079141,1740226241398,-500.0,0.00010958,2]
[354079143,1740226241407,-500.0,0.00010958,2]
[354079145,1740226241417,-500.0,0.00010958,2]
[354079147,1740226241426,-500.0,0.00010958,2]
[354079149,1740226241435,-214.43469933,0.00010958,2]
[354079151,1740226241445,-500.0,0.00010958,2]
[354079153,1740226241454,-500.0,0.00010958,2]
[354079155,1740226241463,-500.0,0.00010958,2]
[354079157,1740226241472,-500.0,0.00010958,2]
[354079159,1740226241481,-500.0,0.00010958,2]
[354079161,1740226241490,-500.0,0.00010958,2]
[354079163,1740226241499,-500.0,0.00010958,2]
[354079164,1740226241509,-500.0,0.00010958,2]
[354079166,1740226241518,-500.0,0.00010958,2]
[354079169,1740226241528,-500.0,0.00010958,2]
[354079171,1740226241537,-500.0,0.00010958,2]
[354079173,1740226241546,-500.0,0.00010958,2]
[354079175,1740226241555,-500.0,0.00010958,2]
[354079177,1740226241564,-507.03991762,0.00010958,2]
[354079178,1740226241573,-500.0,0.00010958,2]
[354079180,1740226241582,-500.0,0.00010958,2]
[354079182,1740226241592,-500.0,0.00010958,2]
[354079184,1740226241601,-500.0,0.00010958,2]
[354079186,1740226241610,-500.0,0.00010958,2]
[354079189,1740226241620,-500.0,0.00010958,2]
[354079190,1740226241630,-500.0,0.00010958,2]
[354079193,1740226241639,-500.0,0.00010958,2]
[354079195,1740226241649,-500.0,0.00010958,2]
[354079196,1740226241658,-500.0,0.00010958,2]
[354079198,1740226241667,-500.0,0.00010958,2]
[354079200,1740226241676,-500.0,0.00010958,2]
[354079202,1740226241686,-500.0,0.00010958,2]
[354079204,1740226241695,-256.34089574,0.00010958,2]
[354079206,1740226241704,-500.0,0.0001104,2]
[354079208,1740226241713,-500.0,0.0001104,2]
[354079210,1740226241723,-500.0,0.0001104,2]
[354079212,1740226241732,-500.0,0.0001104,2]
[354079214,1740226241742,-500.0,0.0001104,2]
[354079216,1740226241751,-500.0,0.0001104,2]
[354079218,1740226241760,-500.0,0.0001104,2]
[354079220,1740226241769,-355.43934401,0.0001104,2]
[354079222,1740226241778,-501.12603356,0.0001104,2]
[354079224,1740226241787,-504.74990525,0.0001104,2]
[354079226,1740226241796,-505.16766979,0.0001104,2]
[354079228,1740226241805,-501.66577245,0.0001104,2]
[354079230,1740226241814,-501.57527434,0.0001104,2]
[354079232,1740226241823,-500.0,0.0001104,2]
[354079234,1740226241832,-500.0,0.0001104,2]
[354079236,1740226241841,-500.0,0.0001104,2]
[354079238,1740226241850,-500.0,0.0001104,2]
[354079240,1740226241859,-500.0,0.0001104,2]
[354079242,1740226241868,-154.99,0.00011041,2]
[354079244,1740226241876,-427.68985327,0.00011041,2]
[354079246,1740226241886,-500.0,0.00011041,2]
[354079248,1740226241894,-600.77900021,0.00011041,2]
[354079250,1740226241904,-500.0,0.00011041,2]
[354079252,1740226241912,-500.0,0.00011041,2]
[354079254,1740226241921,-218.19253643,0.00011041,2]
[354079256,1740226241930,-200.0,0.00011041,2]
[354079258,1740226241939,-500.0,0.00011041,2]
[354079260,1740226241949,-500.0,0.00011041,2]
[354079262,1740226241957,-612.67073157,0.00011041,2]
[354079264,1740226241966,-500.0,0.00011041,2]
[354079266,1740226241975,-500.0,0.00011041,2]
[354079268,1740226241984,-500.0,0.00011041,2]
[354079270,1740226241993,-500.0,0.00011041,2]
[354079272,1740226242002,-500.0,0.00011041,2]
[354079274,1740226242011,-248.31385425,0.00011041,2]
[354079276,1740226242019,-500.0,0.00011041,2]
[354079278,1740226242028,-500.0,0.00011041,2]
[354079280,1740226242037,-518.73349092,0.00011041,2]
[354079282,1740226242047,-510.33150753,0.00011041,2]
[354079284,1740226242056,-500.0,0.00011041,2]
[354079286,1740226242065,-519.78010797,0.00011041,2]
[354079288,1740226242074,-500.0,0.00011041,2]
[354079290,1740226242083,-500.0,0.00011041,2]
[354079292,1740226242092,-500.0,0.00011041,2]
[354079294,1740226242101,-500.0,0.00011041,2]
[354079296,1740226242110,-500.0,0.00011041,2]
[354079298,1740226242120,-240.7,0.00011041,2]
[354079300,1740226242129,-500.0,0.00011041,2]
[354079302,1740226242138,-500.0,0.00011041,2]
[354079305,1740226242148,-224.32,0.00011041,2]
[354079307,1740226242157,-500.0,0.00011041,2]
[354079309,1740226242166,-500.0,0.00011041,2]
[354079311,1740226242175,-500.0,0.00011041,2]
[354079313,1740226242187,-500.0,0.00011041,2]
[354079315,1740226242197,-522.18149226,0.00011041,2]
[354079317,1740226242206,-156.8858597,0.00011099,2]
[354079319,1740226242216,-156.8858597,0.00011099,2]
[354079321,1740226242226,-500.0,0.00011122,2]
[354079323,1740226242235,-502.66089181,0.00011123,2]
[354079325,1740226242244,-504.38954384,0.00011123,2]
[354079327,1740226242253,-397.29231626,0.00011123,2]
[354079329,1740226242263,-500.0,0.00011123,2]
[354079331,1740226242271,-500.0,0.00011123,2]
[354079333,1740226242280,-500.0,0.00011123,2]
[354079335,1740226242289,-500.0,0.00011123,2]
[354079337,1740226242298,-446.50901543,0.00011123,2]
[354079339,1740226242307,-646.7090269,0.00011123,2]
[354079341,1740226242317,-505.8247239,0.00011123,2]
[354079343,1740226242326,-500.0,0.00011123,2]
[354079345,1740226242335,-500.0,0.00011123,2]
[354079347,1740226242348,-400.44291871,0.00011123,2]
[354079349,1740226242358,-500.0,0.00011123,2]
[354079351,1740226242366,-500.0,0.00011123,2]
[354079353,1740226242375,-593.68423918,0.00011123,2]
[354079355,1740226242385,-500.0,0.00011123,2]
[354079357,1740226242395,-507.95227386,0.00011123,2]
[354079359,1740226242404,-500.0,0.00011123,2]
[354079361,1740226242414,-1000.0,0.00011132,2]
[354079363,1740226242423,-476.68,0.00011184,2]
[354079365,1740226242432,-449.61,0.00011184,2]
[354079367,1740226242441,-200.0,0.00011184,2]
[354079369,1740226242450,-500.0,0.00011204,2]
[354079371,1740226242459,-500.0,0.00011204,2]
[354079373,1740226242469,-500.0,0.00011204,2]
[354079375,1740226242478,-500.0,0.00011204,2]
[354079377,1740226242488,-500.0,0.00011204,2]
[354079379,1740226242498,-500.0,0.00011204,2]
[354079381,1740226242507,-645.8,0.00011204,2]
[354079383,1740226242517,-500.0,0.00011204,2]
[354079385,1740226242527,-500.0,0.00011204,2]
[354079387,1740226242537,-500.0,0.00011204,2]
[354079389,1740226242546,-559.53,0.00011204,2]
[354079391,1740226242555,-500.0,0.00011204,2]
[354079393,1740226242565,-500.0,0.00011204,2]
[354079395,1740226242574,-500.0,0.00011204,2]
[354079398,1740226242584,-500.0,0.00011204,2]
[354079400,1740226242594,-500.0,0.00011204,2]
[354079402,1740226242603,-500.0,0.00011204,2]
[354079404,1740226242613,-500.0,0.00011204,2]
[354079406,1740226242622,-500.0,0.00011204,2]
[354079408,1740226242631,-500.0,0.00011204,2]
[354079409,1740226242640,-500.0,0.00011204,2]
[354079411,1740226242650,-500.0,0.00011204,2]
[354079413,1740226242660,-500.0,0.00011204,2]
[354079415,1740226242670,-500.0,0.00011204,2]
[354079417,1740226242679,-1000.0,0.00011204,2]
[354079419,1740226242688,-500.0,0.00011204,2]
[354079421,1740226242698,-500.0,0.00011204,2]
[354079423,1740226242707,-500.0,0.00011204,2]
[354079425,1740226242716,-500.0,0.00011204,2]
[354079427,1740226242725,-187.985844,0.00011205,2]
[354079428,1740226242734,-500.0,0.00011205,2]
[354079429,1740226242743,-500.0,0.00011205,2]
[354079430,1740226242753,-502.95502584,0.00011205,2]
[354079431,1740226242763,-500.0,0.00011205,2]
[354079432,1740226242773,-761.85,0.00011243,2]
[354079433,1740226242783,-500.0,0.00011286,2]
[354079434,1740226242792,-500.0,0.00011286,2]
[354079435,1740226242801,-640.05,0.00011286,2]
[354079436,1740226242811,-500.0,0.00011286,2]
[354079438,1740226242820,-628.2,0.00011286,2]
[354079440,1740226242829,-500.0,0.00011286,2]
[354079442,1740226242839,-1000.0,0.00011286,2]
[354079444,1740226242848,-500.0,0.00011287,2]
[354079446,1740226242858,-500.0,0.00011287,2]
[354079448,1740226242867,-306.11709576,0.00011297,2]
[354079450,1740226242876,-3424.93624248,0.0001133,2]
[354079452,1740226242885,-500.0,0.00011369,2]
[354079454,1740226242895,-500.0,0.00011369,2]
[354079456,1740226242904,-585.19946413,0.00011369,2]
[354079458,1740226242914,-500.0,0.00011369,2]
[354079460,1740226242923,-500.0,0.00011374,2]
[354079462,1740226242932,-500.0,0.00011374,2]
[354079464,1740226242941,-239.0572431,0.00011374,2]
[354079466,1740226242952,-420.0,0.00011375,2]
[354079468,1740226242962,-431.84,0.00011397,2]
[354079470,1740226242971,-500.0,0.00011451,2]
[354079472,1740226242981,-500.0,0.00011451,2]
[354079474,1740226242990,-294.05115727,0.00011452,2]
[354079476,1740226243000,-162.54,0.00011516,2]
[354079478,1740226243010,-500.0,0.00011533,2]
[354079480,1740226243019,-500.0,0.00011533,2]
[354079482,1740226243028,-500.0,0.00011615,2]
[354079484,1740226243038,-313.70136595,0.00011616,2]
[354079486,1740226243047,-718.61537551,0.00011619,2]
[354079488,1740226243058,-156.8858597,0.00011655,2]
[354079490,1740226243067,-480.59525333,0.00011697,2]
[354079492,1740226243077,-841.57,0.00011803,2]
[354079494,1740226243087,-619.48321661,0.00011803,2]
[354079496,1740226243095,-209.94442415,0.000119,2]
[354079498,1740226243105,-150.0,0.00011906,2]
[354079500,1740226243114,-2576.15237925,0.00011915,2]
[354079502,1740226243124,-600.0,0.00012,2]
[354079504,1740226243133,-150.0,0.00012058,2]
[354079506,1740226243142,-850.888,0.00012077,2]
[354079508,1740226243152,-639.0,0.00012077,2]
[354079510,1740226243161,-569.0,0.00012077,2]
[354079512,1740226243171,-500.0,0.00012158,2]
[354079514,1740226243180,-2576.15237925,0.00012213,2]
[354079517,1740226243190,-600.0,0.00012324,2]
[354079519,1740226243201,-270.48,0.00012328,2]
[354079521,1740226243211,-156.8858597,0.00012336,2]
[354079523,1740226243220,-3829.7358,0.00012342,2]
[354079525,1740226243230,-55555.0,0.00012442,2]
[354079527,1740226243239,-10492.0,0.000125,2]
[354079529,1740226243248,-587.0,0.00012508,2]
[354079531,1740226243257,-2576.15237925,0.0001251,2]
[354079534,1740226243266,-1000.0,0.00012523,2]
[354079537,1740226243275,-606.64,0.00012542,2]
[354079540,1740226243285,-500.0,0.00012542,2]
[354079543,1740226243294,-453.63395228,0.00012542,2]
[354079546,1740226243303,-500.0,0.00012542,2]
[354079549,1740226243312,-500.0,0.00012542,2]
[354079551,1740226243322,-500.0,0.00012542,2]
[354079553,1740226243331,-500.0,0.00012542,2]
[354079555,1740226243341,-500.0,0.00012542,2]
[354079557,1740226243355,-501.33199869,0.00012542,2]
[354079559,1740226243364,-500.0,0.00012542,2]
[354079561,1740226243373,-500.0,0.00012542,2]
[354079562,1740226243383,-500.0,0.00012542,2]
[354079564,1740226243393,-500.0,0.00012542,2]
[354079566,1740226243403,-500.0,0.00012542,2]
[354079568,1740226243412,-517.1840961,0.00012542,2]
[354079570,1740226243421,-512.45497478,0.00012542,2]
[354079572,1740226243431,-500.0,0.00012542,2]
[354079574,1740226243440,-500.0,0.00012542,2]
[354079576,1740226243450,-500.0,0.00012542,2]
[354079578,1740226243459,-500.0,0.00012542,2]
[354079581,1740226243470,-500.0,0.00012542,2]